{"text_format":"2","workbook":"xlsx","n_sheets":1,"sheets":["Hallgatók jelölése"],"not_rendered":{"charts":0,"images":0,"macros":0,"external_links":0,"defined_names":2,"comments":0,"pivot_tables":0},"unopened":[],"bounds":{"document_bytes":16777216,"sheet_cells":100000,"run_cost":"one","rows_first":2000,"rows_last":500,"rows_between":2000,"halvings":0,"cell_chars":16384,"cell_head_chars":4096},"cells_cut":0,"cells_raw":0,"read":"whole","date_system":"1900"}

{"sheet":"Hallgatók jelölése","index":0,"n_rows":568,"n_cols":20,"rows_kept":568,"cut":false,"hidden":false,"merged":[[5,3,5,5],[1,0,1,6],[42,3,42,5],[38,0,38,6]]}
[]
["Jelölés ERASMUS+ ösztöndíjra (részképzés, BIP, Rövid idejű doktori mobilitás)"]
[{"$nulls":9},"A  EISENST01","Private Pädagogische Hochschule Burgenland",null,"Karok:",null,"Alapi Tünde",null,null,"SZTE ÁJTK Bűnügyi Tudományok Intézete"]
[null,"Én, ",{"$nulls":4},"A beérkezett hallgatói pályázatok száma",null,null,"A  EISENST05","Joseph Haydn Konservatorium des Landes Burgenland",null,"ÁJTK",null,"Árvay Anett",null,null,"SZTE ÁJTK Civilisztikai Tudományok Intézete"]
[{"$nulls":9},"A  GRAZ01","Karl-Franzens-Universität Graz",null,"BBMK",null,"Bakti Mária",null,null,"SZTE ÁJTK Közjogi Intézet"]
[null,null,"kar",null,null,null,"tanszék",null,null,"A  GRAZ03","Kunstuniversität Graz",null,"BTK",null,"Balog Edit",null,null,"SZTE ÁJTK Magyar Jogtörténeti Tanszék"]
[{"$nulls":9},"A  GRAZ09","Fachhochschule JOANNEUM GmbH",null,"ETSZK",null,"Bencsik Orsolya",null,null,"SZTE ÁJTK Munkajogi és Szociális Jogi Tanszék"]
[null,"ERASMUS-koordinátora az alábbi hallgatókat jelölöm ERASMUS+részképzésre a 2022/2023. tanévre.",{"$nulls":7},"A  INNSBRU03","Pädagogische Hochschule Tirol",null,"FOK",null,"Benkő Zsolt István",null,null,"SZTE ÁJTK Nemzetközi és Regionális Tanulmányok Intézet"]
[{"$nulls":9},"A  KLAGENF01","Universität Klagenfurt",null,"GTK",null,"Berki Tamás",null,null,"SZTE ÁJTK Nemzetközi Jogi és Európa-jogi tanszék"]
[null,"A BIP-es és a Rövid idejű doktori mobilitásokat a Hónap oszlopban kérjük megjelölni.",{"$nulls":7},"A  KLAGENF02","Pädagogische Hochschule Kärnten/Viktor Frankl Hochschule",null,"GYTK",null,"Bíbok Károly",null,null,"SZTE ÁJTK Nemzetközi Magánjogi Tanszék"]
[{"$nulls":9},"A  LEOBEN01","Montanuniversität Leoben",null,"JGYPK",null,"Bozsó Gábor",null,null,"SZTE ÁJTK Összehasonlító Jogi Intézet"]
[null,"Partneregyetem kódja és neve",null,"Hallgató neve","Évfolyam","Hónap","Email",null,null,"A  LINZ01","Johannes Kepler Universität Linz",null,"MGK",null,"Bödő Kinga",null,null,"SZTE ÁJTK Politológiai Tanszék"]
[1,null,{"$f":"IF(ISERROR(VLOOKUP(B13,$J$3:$K$568,2,FALSE)),\"\",VLOOKUP(B13,$J$3:$K$568,2,FALSE))","v":""},{"$nulls":6},"A  SALZBUR01","Universität Salzburg",null,"MK",null,"Bucin Mihaela Geni",null,null,"SZTE ÁJTK Római Jogi Tanszék"]
[2,null,{"$f":"IF(ISERROR(VLOOKUP(B14,$J$3:$K$568,2,FALSE)),\"\",VLOOKUP(B14,$J$3:$K$568,2,FALSE))","v":""},{"$nulls":6},"A  WIEN01","Universität Wien",null,"SZAOK",null,"Csányi Erzsébet",null,null,"SZTE ÁJTK Üzleti Jogi Intézet"]
[3,null,"",{"$nulls":6},"A  WIEN02","Technische Universität Wien",null,"TTIK",null,"Csatlós Erzsébet",null,null,"SZTE Általános Orvostudományi Kar"]
[4,null,"",{"$nulls":6},"A  WIEN03","Universität für Bodenkultur Wien",null,null,null,"Deák Ágnes",null,null,"SZTE ÁOK Orvosi Informatikai Intézet"]
[5,null,"",{"$nulls":6},"A  WIEN08","Universität für Musik und darstellende Kunst Wien",null,null,null,"Deákné Berkó Szilvia",null,null,"SZTE BBMK Bartók Béla Művészeti Kar"]
[6,null,"",{"$nulls":6},"A  WIEN10","Kirchliche Pädagogische Hochschule in Wien",null,null,null,"Deli Alexandra Viktória",null,null,"SZTE BTK Altajisztika Tanszék"]
[7,null,"",{"$nulls":6},"A  WIEN64","Medizinische Universität Wien",null,null,null,"Dénes Attila",null,null,"SZTE BTK Általános Nyelvészeti Tanszék"]
[8,null,"",{"$nulls":6},"B  ANTWERP62","Artesis - Plantijn Hogeschool Antwerpen",null,null,null,"Doró Katalin",null,null,"SZTE BTK Angol-Amerikai Intézet"]
[9,null,"",{"$nulls":6},"B  BRUXEL04","Université Libre de Bruxelles",null,null,null,"Döbörné Fizel Natasa",null,null,"SZTE BTK Angol-Amerikai Intézet, Fordító- tolmácsképző és Hungarológia Központ"]
[10,null,"",{"$nulls":6},"B  BRUXEL84","Haute École Galilée (IHECS - Institut des Hautes Etudes des Communications Sociales)",null,null,null,"Erdei Tamás",null,null,"SZTE BTK Filozófia Tanszék"]
[11,null,"",{"$nulls":6},"B  GENT01","RUG - Universiteit Gent",null,null,null,"Ezio Bernardelli",null,null,"SZTE BTK Finnugor Tanszék"]
[12,null,"",{"$nulls":6},"B  LEUVEN01","Katholieke Universiteit Leuven",null,null,null,"Farkas Attila",null,null,"SZTE BTK Francia Nyelvi és Irodalmi Tanszék"]
[13,null,"",{"$nulls":6},"B  LIEGE37","Haute École Libre Mosane (HELMo)",null,null,null,"Farkas Baráthi Mónika",null,null,"SZTE BTK Germán Filológiai Intézet"]
[14,null,"",{"$nulls":6},"B  LIEGE38","Haute École de la Province de Liège",null,null,null,"Felföldi Szabolcs",null,null,"SZTE BTK Hispanisztika Tanszék"]
[15,null,"",{"$nulls":6},"B  LOUVAIN01","Université Catholique de Louvain",null,null,null,"Finta Regina",null,null,"SZTE BTK Klasszika-Filológia Tanszék"]
[16,null,"",{"$nulls":6},"B  MONS21","Université de Mons-Hainaut",null,null,null,"Fogarasi György",null,null,"SZTE BTK Kommunikáció- és Médiatudományi Tanszék"]
[17,null,"",{"$nulls":6},"BG BLAGOEV02","South-Western University „Neofit Rilski” Blagoevgrad",null,null,null,"Gál József",null,null,"SZTE BTK Könyvtár- és Humán Információtudományi Tanszék"]
[18,null,"",{"$nulls":6},"BG BOURGAS02","Prof. Assen Zlatarov University, Burgas",null,null,null,"Gál Zsuzsanna",null,null,"SZTE BTK Középkori Egyetemes Történeti Tanszék"]
[19,null,"",{"$nulls":6},"BG PLEVEN01","Medical University of Pleven",null,null,null,"Galamb György",null,null,"SZTE BTK Középkori és Kora Újkori Magyar Történeti Tanszék"]
[20,null,"",{"$nulls":6},"BG PLOVDIV01","Agricultural University Plovdiv",null,null,null,"Gera Magdolna",null,null,"SZTE BTK Magyar Irodalmi Tanszék"]
[21,null,"",{"$nulls":6},"BG PLOVDIV02","Medical University Plovdiv",null,null,null,"Gergely Árpád László",null,null,"SZTE BTK Magyar Nyelvészeti Tanszék"]
[22,null,"",{"$nulls":6},"BG PLOVDIV04","Plovdivski Universitet \"Paisiy Hilendarski\"",null,null,null,"Gulyás Sándor",null,null,"SZTE BTK Magyar Nyelvi és Irodalmi Intézet, Vizuális Kultúra és Irodalomtudomány Tanszék"]
[23,null,"",{"$nulls":6},"BG PLOVDIV05","University of Food Technologies in Plovdiv",null,null,null,"Gyenge Balázs",null,null,"SZTE BTK Néprajzi és Kulturális Antropológiai Tanszék"]
[24,null,"",{"$nulls":6},"BG ROUSSE01","University of Rousse \"Angel Kantchev\"",null,null,null,"Hajdú József",null,null,"SZTE BTK Neveléstudományi Intézet"]
[{"$nulls":9},"BG SHOUMEN01","University of Shumen Konstantin Preslavski",null,null,null,"Hevesi Tímea",null,null,"SZTE BTK Olasz Nyelvi és Irodalmi Tanszék"]
[{"$nulls":9},"BG SOFIA03","University of National and World Economy (UNWE)",null,null,null,"Hunyadi Zsolt",null,null,"SZTE BTK Összehasonlító Irodalomtudományi Tanszék"]
["Jelölés ERASMUS+ ösztöndíjra (részképzés, BIP, Rövid idejű doktori mobilitás)",{"$nulls":8},"BG SOFIA06","Sofia University \"St. Kliment Ohridski\"",null,null,null,"Ivaskó Lívia",null,null,"SZTE BTK Pszichológia Tanszék"]
[{"$nulls":9},"BG SOFIA30","Bulgarian Academy of Sciences",null,null,null,"Jakab Éva",null,null,"SZTE BTK Régészeti Tanszék"]
[null,"Én, ",{"$nulls":7},"BG VARNA03","Medical University Varna Prof. D-r Paraskev Stojanov",null,null,null,"Jámbori Szilvia",null,null,"SZTE BTK Szláv Intézet"]
[{"$nulls":9},"BG VELIKO01","Velikoturnovski Universitet \"Sv.Sv. Kirill i Metodii\"",null,null,null,"Jászay Tamás",null,null,"SZTE BTK Szociológia Tanszék"]
[null,null,"kar",null,null,null,"tanszék",null,null,"CH GENEVE01","Université de Genève",null,null,null,"Józsa Krisztián",null,null,"SZTE BTK Történeti Segédtudományok Tanszék"]
[{"$nulls":9},"CY LIMASSO02","Cyprus University of Technology",null,null,null,"Juhász Krisztina",null,null,"SZTE BTK Új- és Legújabbkori Magyar Történeti Tanszék"]
[null,"ERASMUS-koordinátora az alábbi hallgatókat jelölöm ERASMUS+részképzésre a 2022/2023. tanévre.",{"$nulls":7},"CY NICOSIA01","University of Cyprus",null,null,null,"Karsai Krisztina",null,null,"SZTE BTK Újkori Egyetemes Történeti és Mediterrán Tanulmányok Tanszék"]
[{"$nulls":9},"CY NICOSIA14","University of Nicosia",null,null,null,"Katona Eszter",null,null,"SZTE BTK Vallástudományi Tanszék"]
[null,"A BIP-es és a Rövid idejű doktori mobilitásokat a Hónap oszlopban kérjük megjelölni.",{"$nulls":7},"CY NICOSIA15","The Philips College",null,null,null,"Katona Péter",null,null,"SZTE ETSZK Ápolási Tanszék"]
[{"$nulls":9},"CY NICOSIA24","European University Cyprus",null,null,null,"Kiss Márton",null,null,"SZTE ETSZK Fizioterápiás Tanszék"]
[null,"Partneregyetem kódja és neve",null,"Hallgató neve","Évfolyam","Hónap","Email",null,null,"CY NICOSIA30","C.D.A. College",null,null,null,"Kiss Tímea",null,null,"SZTE ETSZK Szociális Munka és Szociálpolitika Tanszék"]
[25,null,{"$f":"IF(ISERROR(VLOOKUP(B50,$J$3:$K$568,2,FALSE)),\"\",VLOOKUP(B50,$J$3:$K$568,2,FALSE))","v":""},{"$nulls":6},"CZ BRNO01","Vysoké učení technické v Brně",null,null,null,"Kónya Zoltán",null,null,"SZTE Fogorvostudományi Kar"]
[26,null,{"$f":"IF(ISERROR(VLOOKUP(B51,$J$3:$K$568,2,FALSE)),\"\",VLOOKUP(B51,$J$3:$K$568,2,FALSE))","v":""},{"$nulls":6},"CZ BRNO02","Mendelova zemědělská a lesnická univerzita v Brně",null,null,null,"Kórus Péter",null,null,"SZTE Gazdaságtudományi Kar"]
[27,null,"",{"$nulls":6},"CZ BRNO03","Janáčkova akademie múzických umění v Brně",null,null,null,"Kovács Krisztina Ágnes",null,null,"SZTE GYTK Gyógyszertechnológiai és Gyógyszerfelügyeleti Intézet"]
[28,null,"",{"$nulls":6},"CZ BRNO05","Masaryková Univerzita",null,null,null,"Kökény Andrea",null,null,"SZTE JGYPK Alkalmazott Egészségtudományi és Környezeti Nevelés Intézet"]
[29,null,"",{"$nulls":6},"CZ CESKE01","Jihočeská univerzita v Českých Budějovicích",null,null,null,"Krémer Sándor",null,null,"SZTE JGYPK Alkalmazott Pedagógiai Intézet, Óvodapedagógus-képző Tanszék"]
[30,null,"",{"$nulls":6},"CZ HRADEC01","Univerzita Hradec Králové",null,null,null,"Kruzslicz Péter",null,null,"SZTE JGYPK Alkalmazott Társadalomismereti és Kisebbségpolitikai Intézet"]
[31,null,"",{"$nulls":6},"CZ KOLIN01","Academia Rerum Civilium - Vysoká škola politických a společenských věd",null,null,null,"Ladányi Lili",null,null,"SZTE JGYPK Alkalmazott Természettudományi Intézet, Technika Tanszék, Általános és Környezetfizikai Tanszék"]
[32,null,"",{"$nulls":6},"CZ LIBEREC01","Technická univerzita v Liberci",null,null,null,"Lamár Erzsébet",null,null,"SZTE JGYPK API Tanítóképző tanszék"]
[33,null,"",{"$nulls":6},"CZ OLOMOUC01","Univerzita Palackého v Olomouci",null,null,null,"Lénárt András",null,null,"SZTE JGYPK Gyógypedagógusképző Intézet"]
[34,null,"",{"$nulls":6},"CZ OPAVA01","Slezská univerzita v Opavě",null,null,null,"Maczelka Noémi",null,null,"SZTE JGYPK Magyar és Alkalmazott Nyelvészeti Tanszék"]
[35,null,"",{"$nulls":6},"CZ OSTRAVA01","Vysoká škola báňská – Technická univerzita Ostrava",null,null,null,"Mezei Péter",null,null,"SZTE JGYPK Modern Nyelvek és Kultúrák Tanszék, Angol Szakcsoport, Francia Szakcsoport"]
[36,null,"",{"$nulls":6},"CZ OSTRAVA02","Ostravská univerzita v Ostravě",null,null,null,"Mitnyán Lajos",null,null,"SZTE JGYPK Modern Nyelvek és Kultúrák Tanszék, Orosz Szakcsoport"]
[37,null,"",{"$nulls":6},"CZ PARDUB01","Univerzita Pardubice",null,null,null,"Mód László",null,null,"SZTE JGYPK Művelődéstudományi Tanszék"]
[38,null,"",{"$nulls":6},"CZ PLZEN01","Západočeská univerzita v Plzni",null,null,null,"Murat Işık",null,null,"SZTE JGYPK Művészeti Intézet, Ének-Zene Tanszék"]
[39,null,"",{"$nulls":6},"CZ PRAHA02","Czech University of Life Sciences",null,null,null,"Nagy Csongor István",null,null,"SZTE JGYPK Művészeti Intézet, Rajz-Művészettörténeti Tanszék"]
[40,null,"",{"$nulls":6},"CZ PRAHA07","Univerzita Karlova v Praze",null,null,null,"Nagy Gyula",null,null,"SZTE JGYPK Nemzetiségi Intézet, Német és Német Nemzetiségi Tanszék"]
[41,null,"",{"$nulls":6},"CZ USTINAD01","Univerzita Jana Evangelisty Purkyně v Ústí nad Labem",null,null,null,"Nagyillés János",null,null,"SZTE JGYPK Nemzetiségi Intézet, Román Nyelv és Irodalom Tanszék"]
[42,null,"",{"$nulls":6},"CZ ZLIN01","Univerzita Tomáše Bati ve Zlíně",null,null,null,"Nyári Tibor",null,null,"SZTE JGYPK Nemzetiségi Intézet, Szlovák Nyelv és Irodalom Tanszék"]
[43,null,"",{"$nulls":6},"D  AACHEN01","Rheinisch-Westfaelische Technische Hochschule Aachen",null,null,null,"Oltványi Beáta",null,null,"SZTE JGYPK Szakképzési, Felnőttképzési és Tudásmenedzsment Intézet"]
[44,null,"",{"$nulls":6},"D  AMBERG01","Ostbayerische Technische Hochschule (OTH)",null,null,null,"Orosz Klára",null,null,"SZTE JGYPK Szakképzési, Felnőttképzési és Tudásmenedzsment Intézet, Informatika Alkalmazásai Tanszék"]
[45,null,"",{"$nulls":6},"D  AUGSBUR02","Hochschule Augsburg",null,null,null,"Pavlovits Tamás",null,null,"SZTE JGYPK Szociálpedagógus-képző Tanszék"]
[46,null,"",{"$nulls":6},"D  BERLIN01","Freie Universität Berlin",null,null,null,"Pluhár András",null,null,"SZTE JGYPK Testnevelés és Sporttudományi Intézet"]
[47,null,"",{"$nulls":6},"D  BERLIN02","Technische Universität Berlin",null,null,null,"Prievara Dóra",null,null,"SZTE Mérnöki Kar"]
[48,null,"",{"$nulls":6},"D  BERLIN04","Beuth Hochschule für Technik, Berlin",null,null,null,"Pusztai Bertalan",null,null,"SZTE MGK Dékáni Hivatal"]
[{"$nulls":9},"D  BERLIN13","HUMBOLDT Universität zu Berlin",null,null,null,"Pusztai Varga Ildikó",null,null,"SZTE TTIK Alkalmazott és Környezeti Kémiai Tanszék"]
[{"$nulls":9},"D  BIELEFE01","Universität Bielefeld",null,null,null,"Rábai Krisztina",null,null,"SZTE TTIK Ásványtani, Geokémiai és Kőzettani Tanszék"]
[{"$nulls":9},"D  BINGEN01","Technische Hochschule Bingen",null,null,null,"Rácz Lajos",null,null,"SZTE TTIK Biológus Tanszékcsoport"]
[{"$nulls":9},"D  BOCHUM01","Ruhr-Universität Bochum",null,null,null,"Sághy Miklós",null,null,"SZTE TTIK Éghajlattani és Tájföldrajzi Tanszék"]
[{"$nulls":9},"D  BONN01","Rheinische Friedrich-Wilhelms-Universität Bonn",null,null,null,"Schiffner Imola",null,null,"SZTE TTIK Fizikai Intézet"]
[{"$nulls":9},"D  BREMEN01","Universität Bremen",null,null,null,"Schirm Anita",null,null,"SZTE TTIK Fizikai Kémiai és Anyagtudományi Tanszék"]
[{"$nulls":9},"D  CHEMNIT01","Technische Universität Chemnitz",null,null,null,"Sekulic Larisza",null,null,"SZTE TTIK Földtani és Őslénytani Tanszék"]
[{"$nulls":9},"D  DORTMUN01","Technische Universität Dortmund",null,null,null,"Sipőcz Katalin",null,null,"SZTE TTIK Gazdaság- és Társadalomföldrajz Tanszék"]
[{"$nulls":9},"D  DORTMUN02","Fachhochschule Dortmund",null,null,null,"Sulyok Márton",null,null,"SZTE TTIK Informatikai Tanszékcsoport"]
[{"$nulls":9},"D  DRESDEN02","Technische Universität Dresden",null,null,null,"Szabó Erzsébet",null,null,"SZTE TTIK Matematika Tanszékcsoport - Bolyai Intézet"]
[{"$nulls":9},"D  DRESDEN05","University of Music Carl Maria von Weber Dresden",null,null,null,"Szabó Tamás",null,null,"SZTE TTIK Szervetlen és Analitikai Kémiai Tanszék"]
[{"$nulls":9},"D  DUSSELD01","Heinrich-Heine-Universität Düsseldorf",null,null,null,"Szalai Anikó",null,null,"SZTE TTIK Természeti Földrajzi és Geoinformatikai Tanszék"]
[{"$nulls":9},"D  ERLANGE01","Friedrich-Alexander-Universität Erlangen-Nürnberg",null,null,null,"Szász Géza"]
[{"$nulls":9},"D  FLENSBU01","Europa-Universität Flensburg",null,null,null,"Szugyiczki Zsuzsanna"]
[{"$nulls":9},"D  FRANKFU01","J. W. Goethe Universität, Frankfurt am Main",null,null,null,"Tóth László"]
[{"$nulls":9},"D  FRANKFU02","Hochschule für Musik und Darstellende Kunst, Frankfurt am Main",null,null,null,"Tölgyesi Csaba"]
[{"$nulls":9},"D  FRANKFU08","Europa-Universität Viadrina Frankfurt (Oder)",null,null,null,"Tuska Tünde"]
[{"$nulls":9},"D  FREIBUR01","Albert-Ludwigs-Universität Freiburg",null,null,null,"Váradi Szilvia"]
[{"$nulls":9},"D  FREIBUR02","Pädagogische Hochschule Freiburg",null,null,null,"Varga Norbert",null,null,"Bachelor 1",null,2]
[{"$nulls":9},"D  FREIBUR03","Hochschule für Musik Freiburg",null,null,null,"Varga-Matusovits Danica",null,null,"Bachelor 2",null,3]
[{"$nulls":9},"D  FREIBUR04","Katolische Hochschule Freiburg",null,null,null,"Vida Anikó",null,null,"Bachelor 3",null,4]
[{"$nulls":9},"D  FREISIN01","Hochschule Weihenstephan-Triesdorf",null,null,null,"Virág Zoltán",null,null,"Master 1",null,5]
[{"$nulls":9},"D  FURTWAN01","Hochschule Furtwangen",null,null,null,"Szabó Tamás",null,null,"Master 2",null,6]
[{"$nulls":9},"D  GIESSEN01","Justus-Liebig-Universität Giessen",null,null,null,"Szabó Tamás",null,null,"PhD 1",null,7]
[{"$nulls":9},"D  GOTTING01","Georg-August-Universität Göttingen",null,null,null,"Szabó Tamás",null,null,"PhD 2",null,8]
[{"$nulls":9},"D  HALLE01","Martin-Luther-Universität Halle-Wittenberg",null,null,null,"Szabó Tamás",null,null,"PhD 3",null,9]
[{"$nulls":9},"D  HAMBURG01","Universität Hamburg",null,null,null,"Szabó Tamás",null,null,"Osztatlan 2",null,10]
[{"$nulls":9},"D  HAMBURG05","Hochschule für Musik und Theater Hamburg",null,null,null,"Szabó Tamás",null,null,"Osztatlan 3",null,11]
[{"$nulls":9},"D  HANNOVE01","Gottfried Wilhelm Leibniz Universität Hannover",null,null,null,"Szabó Tamás",null,null,"Osztatlan 4",null,12]
[{"$nulls":9},"D  HANNOVE02","Medizinische Fachhochschule Hannover",null,null,null,"Szabó Tamás",null,null,"Osztatlan 5",null,"BIP"]
[{"$nulls":9},"D  HEIDELB01","Karl-Ruprecht-Universität Heidelberg",null,null,null,"Szabó Tamás",null,null,"Osztatlan 6",null,"PhD"]
[{"$nulls":9},"D  HEIDELB05","SRH Hochschule Heidelberg",null,null,null,"Szabó Tamás"]
[{"$nulls":9},"D  HEILBRO01","Hochschule Heilbronn",null,null,null,"Szabó Tamás"]
[{"$nulls":9},"D  HILDESH01","Universität Hildesheim",null,null,null,"Szabó Tamás"]
[{"$nulls":9},"D  JENA01","Friedrich-Schiller-Universität Jena",null,null,null,"Szabó Tamás"]
[{"$nulls":9},"D  KARLSRU05","Fachhochschule Karlsruhe - Technik und Wirtschaft",null,null,null,"Szabó Tamás"]
[{"$nulls":9},"D  KASSEL01","Universität Kassel",null,null,null,"Szabó Tamás"]
[{"$nulls":9},"D  KIEL01","Christian-Albrechts-Universität zu Kiel",null,null,null,"Szabó Tamás"]
[{"$nulls":9},"D  KOLN01","Universität zu Köln",null,null,null,"Szabó Tamás"]
[{"$nulls":9},"D  KOLN03","Hochschule für Musik un Tanz, Köln",null,null,null,"Szabó Tamás"]
[{"$nulls":9},"D  KONSTAN01","Universität Konstanz",null,null,null,"Szakonyi Zsolt"]
[{"$nulls":9},"D  LEIPZIG01","Universität Leipzig",null,null,null,"Szalai Anikó"]
[{"$nulls":9},"D  LUNEBUR01","Leuphana Universität Lüneburg",null,null,null,"Szász Géza"]
[{"$nulls":9},"D  MAGDEBU04","Hochschule Magdeburg-Stendal",null,null,null,"Szatmári Zoltán"]
[{"$nulls":9},"D  MAINZ01","Johannes-Gutenberg-Universität Mainz",null,null,null,"Szőnyi György Endre"]
[{"$nulls":9},"D  MANNHEI03","Hochschule Mannheim",null,null,null,"Szőri Milán"]
[{"$nulls":9},"D  MANNHEI06","Hochschule der Bundesagentur für Arbeit",null,null,null,"Tobak Orsolya"]
[{"$nulls":9},"D  MUNCHEN01","Ludwig-Maximilians-Universität München",null,null,null,"Tombácz Etelka"]
[{"$nulls":9},"D  MUNCHEN02","Technische Universität München",null,null,null,"Tóth János"]
[{"$nulls":9},"D  MUNCHEN03","Hochschule für Musik und Theater, München",null,null,null,"Tölgyesi Csaba"]
[{"$nulls":9},"D  MUNSTER01","Westfälische Wilhelms-Universität Münster",null,null,null,"Törőcsikné dr. Görög Márta"]
[{"$nulls":9},"D  NURNBER03","Evangelische Hochschule Nürnberg",null,null,null,"Tuska Tünde"]
[{"$nulls":9},"D  OLDENBU01","Carl von Ossietzky Universität Oldenbourg",null,null,null,"Vajda Róbert"]
[{"$nulls":9},"D  OSNABRU01","Universität Osnabrück",null,null,null,"Vajda Zoltán"]
[{"$nulls":9},"D  OSNABRU02","Hochschule Osnabrück",null,null,null,"Váradi Szilvia"]
[{"$nulls":9},"D  PADERBO01","Universität Paderborn",null,null,null,"Virág Zoltán"]
[{"$nulls":9},"D  POTSDAM01","Universität-Potsdam",null,null,null,"Wodala Barnabás"]
[{"$nulls":9},"D  REGENSB01","Universität Regensburg",null,null,null,"Wölfling János"]
[{"$nulls":9},"D  REGENSB02","Ostbayerische Technische Hochschule Regensburg",null,null,null,"Zimonyi István"]
[{"$nulls":9},"D  ROSTOCK02","Hochschule für Musik und Theater, Rostock",null,null,null,"Zsigmond Ágnes"]
[{"$nulls":9},"D  SAARBRU01","Universität des Saarlandes"]
[{"$nulls":9},"D  SIEGEN01","Universität Siegen"]
[{"$nulls":9},"D  TRIER01","Universität Trier"]
[{"$nulls":9},"D  TUBINGE01","Eberhard Karls Universität Tübingen"]
[{"$nulls":9},"D  WEIMAR02","Hochschule für Musik FRANZ LISZT Weimar"]
[{"$nulls":9},"D  WUPPERT01","Bergische Universität Wuppertal"]
[{"$nulls":9},"D  WURZBUR01","Universität Würzburg"]
[{"$nulls":9},"DK ARHUS01","Aarhus Universitet"]
[{"$nulls":9},"E  ALICANT01","Universidad de Alicante"]
[{"$nulls":9},"E  ALMERIA01","Universidad de Almería"]
[{"$nulls":9},"E  BADAJOZ01","Universidad de Extremadura"]
[{"$nulls":9},"E  BARCELO01","Universitat de Barcelona"]
[{"$nulls":9},"E  BARCELO02","Universitat Autonoma de Barcelona"]
[{"$nulls":9},"E  BILBAO01","Universidad del País Vasco"]
[{"$nulls":9},"E  BILBAO02","Universidad de Deusto"]
[{"$nulls":9},"E  CIUDA-R01","Universidad de Castilla-la Mancha"]
[{"$nulls":9},"E  CORDOBA01","Universidad de Córdoba"]
[{"$nulls":9},"E  GIRONA02","Universitat de Girona"]
[{"$nulls":9},"E  GRANADA01","Universidad de Granada"]
[{"$nulls":9},"E  HUELVA01","Universidad Huelva"]
[{"$nulls":9},"E  JAEN01","Universidad de Jaen"]
[{"$nulls":9},"E  LA-CORU01","Universidade da Coruna"]
[{"$nulls":9},"E  LAS-PAL18","Conservatorio Superior de Música de Canarias (CSMC)"]
[{"$nulls":9},"E  LEON01","Universidad de León"]
[{"$nulls":9},"E  LLEIDA01","Universitat de Lleida"]
[{"$nulls":9},"E  LOGRONO01","Universidad de la Rioja"]
[{"$nulls":9},"E  MADRID03","Universidad Complutense de Madrid"]
[{"$nulls":9},"E  MADRID04","Universidad Autónoma de Madrid"]
[{"$nulls":9},"E  MADRID114","ESIC Business & Marketing School"]
[{"$nulls":9},"E  MADRID14","Universidad Carlos III de Madrid"]
[{"$nulls":9},"E  MADRID18","Universidad Europea de Madrid"]
[{"$nulls":9},"E  MADRID26","Universidad Rey Juan Carlos"]
[{"$nulls":9},"E  MADRID27","Real Conservatorio Superior de Musica de Madrid"]
[{"$nulls":9},"E  MALAGA02","Conservatorio Superior de Musica de Malaga"]
[{"$nulls":9},"E  MURCIA01","Universidad de Murcia"]
[{"$nulls":9},"E  OVIEDO01","Universidade de Oviedo"]
[{"$nulls":9},"E  PALMA01","Universitat de les Illes Balears"]
[{"$nulls":9},"E  SALAMAN02","Universidade de Salamanca"]
[{"$nulls":9},"E  SANTIAG01","Universidade de Santiago de Compostela"]
[{"$nulls":9},"E  SEVILLA01","Universidade de Sevilla"]
[{"$nulls":9},"E  SEVILLA05","Universidad Internacional de Andalucía"]
[{"$nulls":9},"E  TARRAGO01","Universitat Rovira i Virgili"]
[{"$nulls":9},"E  TENERIF01","Universidad de La Laguna"]
[{"$nulls":9},"E  TENERIF28","Escuela Superior de Turismo Iriarte, Universidad de La Laguna"]
[{"$nulls":9},"E  VALENCI01","Universitat de València"]
[{"$nulls":9},"E  VALENCI02","Universidad Politechnica de Valencia"]
[{"$nulls":9},"E  VIGO01","Universidade de Vigo"]
[{"$nulls":9},"E  ZARAGOZ01","Universidad de Zaragoza"]
[{"$nulls":9},"E  ZARAGOZ05","Conservatorio Superior de Música de Aragón (CSMA)"]
[{"$nulls":9},"EE TALLINN04","TalTech University"]
[{"$nulls":9},"EE TALLINN05","Tallinna Ülikool"]
[{"$nulls":9},"EE TARTU01","Eesti Maaülikool"]
[{"$nulls":9},"EE TARTU02","University of Tartu"]
[{"$nulls":9},"F  ANGERS01","Université d`Angers"]
[{"$nulls":9},"F  ANGERS04","Université Catholique de l’Ouest, Angers"]
[{"$nulls":9},"F  ANGERS08","Groupe École Superieure d'Agriculture d'Angers"]
[{"$nulls":9},"F  ANGERS10","Groupe ESSCA"]
[{"$nulls":9},"F  BORDEAU03","Université Bordeaux Montaigne"]
[{"$nulls":9},"F  BORDEAU58","Université de Bordeaux"]
[{"$nulls":9},"F  BREST01","Université de Bretagne Occidentale"]
[{"$nulls":9},"F  CACHAN03","École Normale Superieure Paris-Saclay"]
[{"$nulls":9},"F  CAYENNE04","Université du Guyane"]
[{"$nulls":9},"F  CERGY07","Université de Cergy-Pontoise"]
[{"$nulls":9},"F  CHAMBER01","Université de Savoie"]
[{"$nulls":9},"F  CLERMON02","University of Clermont Auvergne"]
[{"$nulls":9},"F  CORTE01","Università di Corsica Pasquale Paoli"]
[{"$nulls":9},"F  DIJON31","AgroSup Dijon"]
[{"$nulls":9},"F  DUNKERQ09","Université du Littoral Côte d'Opale"]
[{"$nulls":9},"F  EVRY04","Université d'Evry-Val-d'Essonne"]
[{"$nulls":9},"F  GIF-YVE03","CentraleSupelec"]
[{"$nulls":9},"F  LAROCHE01","ICES Catholic University of Vendée"]
[{"$nulls":9},"F  LAVAL09","Lycée Agricole Val de Sarthe"]
[{"$nulls":9},"F  LE-HAVR04","École de Management de Normandie"]
[{"$nulls":9},"F  LE-MANS01","Le Mans Université"]
[{"$nulls":9},"F  LILLE102","Sciences Po Lille"]
[{"$nulls":9},"F  LILLE103","Université de Lille"]
[{"$nulls":9},"F  LILLE11","Université Catholique de Lille"]
[{"$nulls":9},"F  LILLE51","JUNIA ISA Lille"]
[{"$nulls":9},"F  LIMOGES01","Université de Limoges"]
[{"$nulls":9},"F  LYON01","L’Université Claude-Bernard Lyon"]
[{"$nulls":9},"F  LYON03","Université Jean Moulin Lyon III"]
[{"$nulls":9},"F  LYON10","Université Catholique de Lyon"]
[{"$nulls":9},"F  LYON17","ISARA Lyon"]
[{"$nulls":9},"F  MONTPEL03","Université Paul Valéry - Montpellier III"]
[{"$nulls":9},"F  MONTPEL54","Université de Montpellier"]
[{"$nulls":9},"F  MOOREA01","Lycée Agricole d'Opunohu"]
[{"$nulls":9},"F  NANCY43","Université de Lorraine"]
[{"$nulls":9},"F  NANTES01","Université de Nantes"]
[{"$nulls":9},"F  NICE42","Université Côte d'Azur"]
[{"$nulls":9},"F  NIMES17","University of Nimes"]
[{"$nulls":9},"F  NOISY02","Ecole Supérieure d’Ingénieurs en Electrotechnique et Electronique (ESIEE)"]
[{"$nulls":9},"F  ORSAY02","Institut d'Optique Graduate School"]
[{"$nulls":9},"F  PARIS001","Université Paris 1 - Panthéon Sorbonne"]
[{"$nulls":9},"F  PARIS008","Université Paris 8 Vincennes - Saint Denis"]
[{"$nulls":9},"F  PARIS010","Université de Paris-Nanterre (Paris X)"]
[{"$nulls":9},"F  PARIS054","École Pratique des Hautes Etudes (EPHE)"]
[{"$nulls":9},"F  PARIS077","Institut des sciences et industries du vivant et de l'environnement (AgroParisTech)"]
[{"$nulls":9},"F  PARIS092","École nationale des Chartes"]
[{"$nulls":9},"F  PARIS178","Institut Nationale des Langues et Civilisations Orientales"]
[{"$nulls":9},"F  PARIS429","Institut d'Etude des Relationes Internationales - ILERI"]
[{"$nulls":9},"F  PARIS468","Sorbonne Université, Faculté des Lettres"]
[{"$nulls":9},"F  PARIS481","Université Paris-Saclay"]
[{"$nulls":9},"F  RENNES01","Université de Rennes I"]
[{"$nulls":9},"F  RENNES02","Université de Rennes 2"]
[{"$nulls":9},"F  RENNES49","École Européenne Supérieure d’Art de Bretagne"]
[{"$nulls":9},"F  ROUEN01","Université de Rouen"]
[{"$nulls":9},"F  SAINTES05","EPLEFPA  de SAINTONGE"]
[{"$nulls":9},"F  ST-DENI01","Université de la Réunion"]
[{"$nulls":9},"F  STRASBO48","Université de Strasbourg"]
[{"$nulls":9},"F  TOULOUS09","Institut Catholique de Toulouse"]
[{"$nulls":9},"F  TOULOUS15","Ecole d’ingénieurs de PURPAN, Toulouse"]
[{"$nulls":9},"F  TOURS01","Université Francois Rabelais, Tours"]
[{"$nulls":9},"F  VERSAIL11","Université Versailles-Saint-Quentin-en-Yvelines"]
[{"$nulls":9},"G  ATHINE01","National and Kapodistrian University of Athens"]
[{"$nulls":9},"G  ATHINE03","Agricultural University of Athens"]
[{"$nulls":9},"G  EGALEO02","University of West Attica"]
[{"$nulls":9},"G  KOMOTIN01","Dimokritio Panepistimio Thrakis"]
[{"$nulls":9},"G  KRITIS01","University of Crete"]
[{"$nulls":9},"G  THESSAL01","Aristotle University of Thessaloniki"]
[{"$nulls":9},"G  THESSAL12","Alexander Technological Educational Institute of Thessaloniki"]
[{"$nulls":9},"G  THESSAL14","International Hellenic University"]
[{"$nulls":9},"G  TRIPOLI03","Technological Educational Institute of Kalamata"]
[{"$nulls":9},"HR OSIJEK01","Sveučilište Josipa Jurja Strossmayera u Osijeku"]
[{"$nulls":9},"HR OSIJEK02","Veleučilište u Slavonskom Brodu"]
[{"$nulls":9},"HR PULA01","Sveučilište Jurja Dobrile u Puli"]
[{"$nulls":9},"HR RIJEKA01","Sveučilište u Rijeci"]
[{"$nulls":9},"HR SPLIT01","Sveučilište u Splitu"]
[{"$nulls":9},"HR ZADAR01","Sveučilište u Zadru"]
[{"$nulls":9},"HR ZAGREB01","Sveučilište u Zagrebu"]
[{"$nulls":9},"I  ADRIA01","Conservatorio di Musica “Antonio Buzzolla” di Adria (RO)"]
[{"$nulls":9},"I  AOSTA02","Università della Valle d'Aosta - Université de la Vallée d'Aoste"]
[{"$nulls":9},"I  BOLOGNA01","Università degli Studi di  Bologna"]
[{"$nulls":9},"I  BOLZANO02","Conservatorio di Musica \"C.Monteverdi\" di Bolzano"]
[{"$nulls":9},"I  CAGLIAR01","Università degli Studi di Cagliari"]
[{"$nulls":9},"I  CAMPOBA03","Conservatorio di Musica 'L. Perosi', Campobasso"]
[{"$nulls":9},"I  CATANIA01","Università degli Studi di Catania"]
[{"$nulls":9},"I  CHIETI01","Università degli Studi di \"G. d'Annunzio\" di Chieti"]
[{"$nulls":9},"I  COSENZA01","Università della Calabria"]
[{"$nulls":9},"I  FERRARA01","Università di Ferrara"]
[{"$nulls":9},"I  FIRENZE01","Università degli Studi di Firenze"]
[{"$nulls":9},"I  FOGGIA03","Università degli Studi di Foggia"]
[{"$nulls":9},"I  FROSINO02","Conservatorio di Musica \"L. Refice\""]
[{"$nulls":9},"I  GENOVA01","Università degli Studi di Genova"]
[{"$nulls":9},"I  L-AQUIL01","Università degli Studi di L'Aquila"]
[{"$nulls":9},"I  LATINA02","Conservatorio di Musica Ottorino Respighi di Latina"]
[{"$nulls":9},"I  LECCE01","Università del Salento"]
[{"$nulls":9},"I  MACERAT01","Università degli Studi di Macerata"]
[{"$nulls":9},"I  MACERAT02","Accademia di Belle Arti di Macerata"]
[{"$nulls":9},"I  MANTOVA01","Conservatorio di Musica \"L.Campiani\", Mantova"]
[{"$nulls":9},"I  MESSINA01","Università degli Studi di Messina"]
[{"$nulls":9},"I  MILANO01","Università degli Studi di Milano"]
[{"$nulls":9},"I  MILANO03","Università Cattolica del Sacro Cuore"]
[{"$nulls":9},"I  MILANO16","Università degli Studi di Milano Bicocca"]
[{"$nulls":9},"I  NAPOLI01","Università degli Studi di Napoli Federico II"]
[{"$nulls":9},"I  NAPOLI02","Istituto Universitario Orientale, Napoli"]
[{"$nulls":9},"I  NAPOLI07","Conservatorio di Musica di San Pietro a Majella"]
[{"$nulls":9},"I  NAPOLI09","Università degli Studi della Campania Luigi Vanvitelli"]
[{"$nulls":9},"I  PADOVA01","Università degli Studi di Padova 'Il Bo'"]
[{"$nulls":9},"I  PALERMO04","Conservatorio di Musica \"Vincenzo Bellini\" di Palermo"]
[{"$nulls":9},"I  PARMA01","Università degli Studi di Parma"]
[{"$nulls":9},"I  PARMA02","Conservatorio di Musica \"Arrigo Boito\", Parma"]
[{"$nulls":9},"I  PAVIA01","Università degli Studi di Pavia"]
[{"$nulls":9},"I  PERUGIA01","Università degli Studi di Perugia"]
[{"$nulls":9},"I  PERUGIA06","Università per Stranieri di Perugia"]
[{"$nulls":9},"I  PESCARA01","Conservatorio di Musica di Pescara 'Luisa d'Annunzio' "]
[{"$nulls":9},"I  PISA01","Università di Pisa"]
[{"$nulls":9},"I  POTENZA01","Università degli Studi della Basilicata"]
[{"$nulls":9},"I  REGGIO01","Università degli Studi Mediterranea di Reggio Calabria"]
[{"$nulls":9},"I  ROMA01","Università degli Studi di Roma 'La Sapienza'"]
[{"$nulls":9},"I  ROMA02","Università degli Studi di Roma 'Tor Vergata'"]
[{"$nulls":9},"I  ROMA09","Conservatorio di Musica Santa Cecilia, Roma"]
[{"$nulls":9},"I  ROMA16","Università degli Studi di Roma Tre"]
[{"$nulls":9},"I  SASSARI01","Università degli Studi di Sassari"]
[{"$nulls":9},"I  SIENA01","Università degli Studi di Siena"]
[{"$nulls":9},"I  SIENA02","Università per Stranieri di Siena"]
[{"$nulls":9},"I  TERAMO01","Università degli Studi di Teramo"]
[{"$nulls":9},"I  TORINO01","Università degli Studi di Torino"]
[{"$nulls":9},"I  TRAPANI03","Accademia di Belle Arti “Kandinskij” di Trapani"]
[{"$nulls":9},"I  UDINE01","Università degli Studi di Udine"]
[{"$nulls":9},"I  URBINO01","Università degli Studi di Urbino"]
[{"$nulls":9},"I  VARESE02","Università degli Studi dell'Insubria"]
[{"$nulls":9},"I  VENEZIA03","Accademia di Belle Arti di Venezia"]
[{"$nulls":9},"I  VERONA01","Università degli Studi di Verona"]
[{"$nulls":9},"IRLLIMERIC01","University of Limerick"]
[{"$nulls":9},"IS AKUREYR01","University of Akureyri"]
[{"$nulls":9},"IS BORGARN02","Agricultural University of Iceland"]
[{"$nulls":9},"IS REYKJAV05","Reykjavik University"]
[{"$nulls":9},"IS REYKJAV06","Iceland Academy of the Arts"]
[{"$nulls":9},"LT KAUNAS01","Vytauto Didžiojo universitetas"]
[{"$nulls":9},"LT KAUNAS02","Kauno technologijos universitetas"]
[{"$nulls":9},"LT KAUNAS05","Aleksandro Stulginskio universitetas"]
[{"$nulls":9},"LT KAUNAS08","Kauno Kolegija"]
[{"$nulls":9},"LT KAUNAS13","Lithuanian University of Health Sciences"]
[{"$nulls":9},"LT KAUNO01","Kaunas College of Forestry and Environmental Engineering"]
[{"$nulls":9},"LT KLAIPED01","Klaipėdos universitetas"]
[{"$nulls":9},"LT SIAULIA01","Šiaulių universitetas"]
[{"$nulls":9},"LT VILNIUS01","Vilniaus Universitetas"]
[{"$nulls":9},"LT VILNIUS02","Vilniaus Gedimino technikos universitetas"]
[{"$nulls":9},"LT VILNIUS14","Vilnius College of Technologies and Design"]
[{"$nulls":9},"LV JELGAVA01","Latvia University of Agriculture"]
[{"$nulls":9},"LV RIGA01","Latvijas Universitāte"]
[{"$nulls":9},"LV RIGA27","Rīgas Pedagoģijas un izglītības vadības akadēmija"]
[{"$nulls":9},"LV RIGA31","Transport and Telecommunication Insitute"]
[{"$nulls":9},"LV RIGA34","Riga Graduate School of Law"]
[{"$nulls":9},"MK SKOPJE01","Ss. Cyril and Methodius University, Skopje"]
[{"$nulls":9},"MK STIP01","Goce Delchev University - Stip"]
[{"$nulls":9},"MK STRUGA01","International University of Struga"]
[{"$nulls":9},"MK TETOVO01","University of Tetova"]
[{"$nulls":9},"MT MALTA01","University of Malta"]
[{"$nulls":9},"N  BERGEN01","Universitetet i Bergen"]
[{"$nulls":9},"N  ELVERUM02","Inland Norway University of Applied Sciences"]
[{"$nulls":9},"N  OSLO01","Universitetet i Oslo"]
[{"$nulls":9},"N  OSLO03","Norwegian Academy of Music"]
[{"$nulls":9},"N  TROMSO01","Universitetet i Tromsø"]
[{"$nulls":9},"N  TRONDHE01","Norges Teknisk-Naturvitenskapelige Universitet"]
[{"$nulls":9},"NL AMSTERD07","Amsterdam University of the Arts"]
[{"$nulls":9},"NL DRONTEN01","Vilentum University of Applied Sciences"]
[{"$nulls":9},"NL EINDHOV17","Technische Universiteit Eindhoven"]
[{"$nulls":9},"NL ENSCHED01","University of Twente"]
[{"$nulls":9},"NL GRONING01","Rijksuniversiteit Groningen"]
[{"$nulls":9},"NL ROTTERD01","Erasmus Universiteit Rotterdam"]
[{"$nulls":9},"NL UTRECHT01","Universiteit Utrecht"]
[{"$nulls":9},"NL VELP05","Van Hall Larenstein, Leeuwarden"]
[{"$nulls":9},"P  ACORES01","Universidade dos Açores"]
[{"$nulls":9},"P  BRAGA01","Universidade do Minho"]
[{"$nulls":9},"P  CASTELO01","Instituto Politécnico de Castelo Branco (IPCB)"]
[{"$nulls":9},"P  COIMBRA01","Universidade de Coimbra"]
[{"$nulls":9},"P  COIMBRA05","Instituto Superior Miguel Torga (ISMT)"]
[{"$nulls":9},"P  EVORA01","Universidade de Évora"]
[{"$nulls":9},"P  FUNCHAL03","Universidade da Madeira"]
[{"$nulls":9},"P  LISBOA01","Universidade Católica Portuguesa"]
[{"$nulls":9},"P  LISBOA03","Universidade Nova de Lisboa"]
[{"$nulls":9},"P  LISBOA05","Instituto Politecnico de Lisboa, Superior de Educação de Lisboa"]
[{"$nulls":9},"P  MAIA01","Instituto Politécnico da Maia"]
[{"$nulls":9},"P  PORTALE01","Instituto Politécnico  de Portalegre"]
[{"$nulls":9},"P  PORTO02","Universidade do Porto"]
[{"$nulls":9},"P  PORTO07","Universidade Portucalense Infante D. Henrique"]
[{"$nulls":9},"P  PORTO16","ISAG - European Business School"]
[{"$nulls":9},"P  SETUBAL01","Instituto Politecnico de Setúbal"]
[{"$nulls":9},"PL BIALYST04","Uniwersytet w Białymstoku"]
[{"$nulls":9},"PL BIELSKO02","University of Bielsko-Biala"]
[{"$nulls":9},"PL BYDGOSZ01","Uniwersytet Kazimierza Wielkiego w Bydgoszczy"]
[{"$nulls":9},"PL BYDGOSZ02","Uniwersytet Technologiczno-Przyrodniczy"]
[{"$nulls":9},"PL CZESTOC02","Jan Dlugosz University in Czestochowa"]
[{"$nulls":9},"PL GDANSK01","Uniwersytet Gdański"]
[{"$nulls":9},"PL GDANSK03","Gdański Uniwersytet Medyczny"]
[{"$nulls":9},"PL GDANSK04","Akademia Muzyczna im. Stanisława Moniuszki w Gdańsku"]
[{"$nulls":9},"PL GLIWICE01","Politechnika Śląska"]
[{"$nulls":9},"PL JOZEFOW01","Wyższa Szkoła Gospodarki Euroregionalnej im. Alcide De Gasperi w Józefowie"]
[{"$nulls":9},"PL KATOWIC01","Uniwersytet Śląski w Katowicach"]
[{"$nulls":9},"PL KATOWIC02","Uniwersytet Ekonomiczny w Katowicach"]
[{"$nulls":9},"PL KATOWIC04","Akademia Muzyczna im. Karola Szymanowskiego w Katowicach"]
[{"$nulls":9},"PL KATOWIC15","Wyższa Szkoła Techniczna w Katowicach"]
[{"$nulls":9},"PL KIELCE02","Uniwersytet Jana Kochanowskiego w Kielcach"]
[{"$nulls":9},"PL KONIN02","Panstwowa Wyzsza Szkola Zawodowa w Koninie"]
[{"$nulls":9},"PL KRAKOW01","Uniwersytet Jagielloński w Krakowie"]
[{"$nulls":9},"PL KRAKOW04","Uniwersytet Ekonomiczny w Krakowie"]
[{"$nulls":9},"PL KRAKOW06","Uniwersytet Rolniczy w Krakowie im. Hugona Kołłątaja"]
[{"$nulls":9},"PL KRAKOW08","Pontifical University of John Paul II in Krakow"]
[{"$nulls":9},"PL KRAKOW09","The Academy of Music in Kraków"]
[{"$nulls":9},"PL KRAKOW17","Andrzej Frycz Modrzewski Krakow University"]
[{"$nulls":9},"PL KRAKOW19","Akademia Ignatianum w Krakowie"]
[{"$nulls":9},"PL LODZ01","Uniwersytet Łódzki"]
[{"$nulls":9},"PL LUBLIN01","Uniwersytet Marii Curie-Skłodowskiej"]
[{"$nulls":9},"PL LUBLIN03","Politechnika Lubelska"]
[{"$nulls":9},"PL LUBLIN04","Life Science University in Lublin"]
[{"$nulls":9},"PL LUBLIN05","Uniwersytet Medyczny w Lublinie"]
[{"$nulls":9},"PL NOWY-SA02","State Higher Vocational School in Nowy Sacz"]
[{"$nulls":9},"PL POZNAN01","Uniwersytet im. Adama Mickiewicza w Poznaniu"]
[{"$nulls":9},"PL POZNAN03","Uniwersytet Ekonomiczny w Poznaniu"]
[{"$nulls":9},"PL POZNAN04","Poznan University of Life Sciences"]
[{"$nulls":9},"PL POZNAN06","Akademia Muzyczna im. Ignacego Jana Paderewskiego"]
[{"$nulls":9},"PL PRZEMYS01","Wyższa Szkoła Prawa i Administracji w Przemyślu"]
[{"$nulls":9},"PL RZESZOW02","Uniwersytet Rzeszowski"]
[{"$nulls":9},"PL SANOK01","Państwowa Wyższa Szkoła Zawodowa im. Jana Grodka w Sanoku"]
[{"$nulls":9},"PL SLUPSK01","Akademia Pomorska w Słupsku"]
[{"$nulls":9},"PL SZCZECI01","Uniwersytet Szczeciński"]
[{"$nulls":9},"PL SZCZECI02","West Pomeranian University of Technology, Szczecin"]
[{"$nulls":9},"PL TORUN01","Uniwersytet Mikołaja Kopernika"]
[{"$nulls":9},"PL WARSZAW01","Uniwersytet Warszawski"]
[{"$nulls":9},"PL WARSZAW05","Warsaw University of Life Sciences"]
[{"$nulls":9},"PL WARSZAW09","Uniwersytet Muzyczny Fryderyka Chopina"]
[{"$nulls":9},"PL WARSZAW14","Łazarski University"]
[{"$nulls":9},"PL WARSZAW76","Institute of Literary Research of the Polish Academy of Sciences"]
[{"$nulls":9},"PL WROCLAW01","Uniwersytet Wrocławski"]
[{"$nulls":9},"PL WROCLAW02","Politechnika Wrocławska"]
[{"$nulls":9},"PL WROCLAW04","Uniwersytet Przyrodniczy we Wrocławiu"]
[{"$nulls":9},"PL WROCLAW05","Uniwersytet Medyczny im. Piastów Śląskich we Wrocławiu"]
[{"$nulls":9},"PL WROCLAW06","Akademia Muzyczna im. Karola Lipińskiego we Wrocławiu"]
[{"$nulls":9},"PL ZIELONA01","University of Zielona Góra"]
[{"$nulls":9},"RO ARAD01","Universitatea „Aurel Vlaicu” din Arad"]
[{"$nulls":9},"RO ARAD02","Universitatea de Vest „Vasile Goldiş” Arad"]
[{"$nulls":9},"RO BACAU02","Universitatea George Bacovia Bacău"]
[{"$nulls":9},"RO BRASOV01","Universitatea Transilvania din Braşov"]
[{"$nulls":9},"RO BUCURES03","Universitatea Naţională de Muzică din Bucureşti"]
[{"$nulls":9},"RO BUCURES09","Universitatea din Bucureşti"]
[{"$nulls":9},"RO BUCURES12","Universitatea de Ştiinţe Agronomice şi Medicină Veterinară din Bucureşti"]
[{"$nulls":9},"RO BUCURES13","Școala Naţională de Studii Politice și Administrative (SNSPA)"]
[{"$nulls":9},"RO BUCURES31","Universitatea Crestina \"Dimitrie Cantemir\""]
[{"$nulls":9},"RO CLUJNAP01","Universitatea Babeş-Bolyai Cluj-Napoca"]
[{"$nulls":9},"RO CLUJNAP02","Academia de Muzica \"Gheorghe Dima\""]
[{"$nulls":9},"RO CLUJNAP03","Universitatea de Medicină şi Farmacie \"Iuliu Haţieganu\", Cluj-Napoca"]
[{"$nulls":9},"RO CLUJNAP05","Universitatea Tehnică din Cluj-Napoca"]
[{"$nulls":9},"RO CLUJNAP06","Universitatea de Artă şi Design din Cluj-Napoca"]
[{"$nulls":9},"RO CLUJNAP07","Universitatea Sapientia din Cluj-Napoca"]
[{"$nulls":9},"RO CLUJNAP08","Institutul Teologic Protestant din Cluj-Napoca"]
[{"$nulls":9},"RO CRAIOVA01","Universitatea din Craiova"]
[{"$nulls":9},"RO CRAIOVA02","Universitatea de Medicină şi Farmacie din Craiova"]
[{"$nulls":9},"RO GALATI01","Universitatea „Dunărea de Jos” din Galaţi"]
[{"$nulls":9},"RO GALATI02","Universitatea Danubius din Galaţi"]
[{"$nulls":9},"RO IASI02","Universitatea Alexandru Ioan Cuza"]
[{"$nulls":9},"RO IASI04","Universitatea de Medicină şi Farmacie 'Gr.T. Popa'"]
[{"$nulls":9},"RO ORADEA01","Universitatea din Oradea"]
[{"$nulls":9},"RO ORADEA02","Universitatea Creştină Partium"]
[{"$nulls":9},"RO ORADEA03","Agora University of Oradea"]
[{"$nulls":9},"RO SIBIU01","Universitatea \"Lucian Blaga\" din Sibiu"]
[{"$nulls":9},"RO SUCEAVA01","Universitatea Ştefan cel Mare din Suceava (USV)"]
[{"$nulls":9},"RO TARGU02","Universitatea de Medicină, Farmacie, Ştiinte şi Tehnologie George Emil Palade din Târgu Mureş"]
[{"$nulls":9},"RO TIMISOA01","Universitatea de Vest din Timişoara"]
[{"$nulls":9},"RO TIMISOA02","Universitatea de Medicina si Farmacie \"Victor Babes\" din Timişoara"]
[{"$nulls":9},"RO TIMISOA03","Universitatea de Ştiinţe Agricole şi Medicină Veterinară a Banatului"]
[{"$nulls":9},"RO TIMISOA04","Universitatea Politehnica din Timişoara"]
[{"$nulls":9},"RS BELGRAD09","Megatrend Univerzitet"]
[{"$nulls":9},"RS KRAGUJE01","University of Kragujevac"]
[{"$nulls":9},"RS NOVISAD02","University of Novi Sad"]
[{"$nulls":9},"RS NOVISAD04","EDUCONS University"]
[{"$nulls":9},"RS NOVISAD07","University Business Academy in Novi Sad"]
[{"$nulls":9},"S  BORAS01","University of Borås"]
[{"$nulls":9},"S  GOTEBOR01","Göteborgs Universitet"]
[{"$nulls":9},"S  KARLSTA01","Karlstad University"]
[{"$nulls":9},"S  LULEA01","Luleå Tekniska Universitet"]
[{"$nulls":9},"S  LUND01","Lunds Universitet"]
[{"$nulls":9},"S  MALMO01","Malmö University"]
[{"$nulls":9},"S  UMEA01","Umeå Universitet"]
[{"$nulls":9},"S  UPPSALA01","Uppsala Universitet"]
[{"$nulls":9},"S  VAXJO03","Linnaeus University"]
[{"$nulls":9},"SF KUOPIO12","University of Eastern Finland"]
[{"$nulls":9},"SF MIKKELI07","South-Eastern Finland University of Applied Sciences"]
[{"$nulls":9},"SF OULU01","University of Oulu"]
[{"$nulls":9},"SF TAMPERE06","Tampere University of Applied Sciences (TAMK)"]
[{"$nulls":9},"SF TAMPERE17","Tampere University of Applied Sciences (TAMK)"]
[{"$nulls":9},"SF TURKU01","University of Turku"]
[{"$nulls":9},"SF TURKU02","Åbo Akademi"]
[{"$nulls":9},"SI KOPER03","Univerza na Primorskem"]
[{"$nulls":9},"SI LJUBLJA01","Univerza v Ljubljani"]
[{"$nulls":9},"SI MARIBOR01","Univerza v Mariboru"]
[{"$nulls":9},"SI NOVA-GO07","New University"]
[{"$nulls":9},"SK BANSKA01","Univerzita Mateja Bela v Banskej Bystrici"]
[{"$nulls":9},"SK BANSKA02","Academy Of Arts in Banska Bystrica"]
[{"$nulls":9},"SK BRATISL01","Slovenská technická univerzita v Bratislave"]
[{"$nulls":9},"SK BRATISL02","Univerzita Komenského v Bratislave"]
[{"$nulls":9},"SK BRATISL11","Slovenská zdravotnícka univerzita v Bratislave"]
[{"$nulls":9},"SK KOMARNO01","Univerzita J. Selyeho v Komárne"]
[{"$nulls":9},"SK KOSICE02","Univerzita Pavla Jozefa Šafárika v Košiciach"]
[{"$nulls":9},"SK KOSICE03","Technicka univerzita v Košiciach"]
[{"$nulls":9},"SK NITRA01","Univerzita Konštantina Filozofa v Nitre"]
[{"$nulls":9},"SK NITRA02","Slovenská poľnohospodárska univerzita v Nitre"]
[{"$nulls":9},"SK PRESOV01","Prešovská Univerzita v Prešove"]
[{"$nulls":9},"SK RUZOMBE01","Katolícka univerzita v Ružomberku"]
[{"$nulls":9},"SK TRNAVA01","Trnavská Univerzita v Trnave"]
[{"$nulls":9},"SK TRNAVA02","Univerzita sv. Cyrila a Metoda v Trnave"]
[{"$nulls":9},"TR ADANA01","Çukurova University"]
[{"$nulls":9},"TR AFYON01","Afyon Kocatepe Üniversitesi"]
[{"$nulls":9},"TR AKSARAY01","Aksaray Üniversitesi"]
[{"$nulls":9},"TR ANKARA01","Ankara Üniversitesi"]
[{"$nulls":9},"TR ANKARA03","Hacettepe Üniversitesi"]
[{"$nulls":9},"TR ANKARA04","Middle East Technical University"]
[{"$nulls":9},"TR ANKARA06","Başkent Üniversitesi"]
[{"$nulls":9},"TR ANKARA15","Yıldırım Beyazıt Üniversitesi"]
[{"$nulls":9},"TR ARDAHAN01","Ardahan Üniversitesi"]
[{"$nulls":9},"TR AYDIN01","Adnan Menderes Üniversitesi"]
[{"$nulls":9},"TR BALIKES01","Balıkesir Üniversitesi"]
[{"$nulls":9},"TR BOLU01","Abant Izzet Baysal Üniversitesi"]
[{"$nulls":9},"TR BURDUR01","Mehmet Akif Ersoy Üniversitesi"]
[{"$nulls":9},"TR BURSA01","Uludağ Üniversitesi"]
[{"$nulls":9},"TR CANAKKA01","Çanakkale Onsekiz Mart Üniversitesi"]
[{"$nulls":9},"TR DENIZLI01","Pamukkale Üniversitesi"]
[{"$nulls":9},"TR DUZCE01","Düzçe Üniversitesi"]
[{"$nulls":9},"TR EDIRNE01","Trakya Üniversitesi"]
[{"$nulls":9},"TR ERZURUM01","Atatürk Üniversitesi"]
[{"$nulls":9},"TR ESKISEH01","Anadolu Üniversitesi"]
[{"$nulls":9},"TR GIRESUN01","Giresun Üniversitesi"]
[{"$nulls":9},"TR HATAY01","Mustafa Kemal Üniversitesi"]
[{"$nulls":9},"TR IGDIR01","Iğdır Üniversitesi"]
[{"$nulls":9},"TR ISPARTA01","Süleyman Demirel Üniversitesi"]
[{"$nulls":9},"TR ISTANBU03","Istanbul Üniversitesi"]
[{"$nulls":9},"TR ISTANBU05","Marmara Üniversitesi"]
[{"$nulls":9},"TR ISTANBU06","Mimar Sinan Güzel Sanatlar Üniversitesi"]
[{"$nulls":9},"TR ISTANBU07","Yıldız Teknik Üniversitesi"]
[{"$nulls":9},"TR ISTANBU16","Kadir Has Üniversitesi"]
[{"$nulls":9},"TR ISTANBU21","Yeditepe Üniversitesi"]
[{"$nulls":9},"TR ISTANBU25","Istanbul AYDIN Üniversitesi"]
[{"$nulls":9},"TR ISTANBU29","Istanbul Arel University"]
[{"$nulls":9},"TR ISTANBU38","Altınbaş Üniversitesi"]
[{"$nulls":9},"TR ISTANBU40","Bezmiâlem Vakıf Üniversitesi"]
[{"$nulls":9},"TR ISTANBU43","İstanbul 29 Mayis Üniversitesi"]
[{"$nulls":9},"TR ISTANBU48","Istanbul Medeniyet University"]
[{"$nulls":9},"TR ISTANBU58","Beykoz University"]
[{"$nulls":9},"TR IZMIR01","Dokuz Eylül Üniversitesi"]
[{"$nulls":9},"TR IZMIR02","Ege Üniversitesi"]
[{"$nulls":9},"TR IZMIR03","Izmir Institute of Technology"]
[{"$nulls":9},"TR IZMIR05","Yaşar Üniversitesi"]
[{"$nulls":9},"TR KILIS01","Kilis 7 Aralık Üniversitesi"]
[{"$nulls":9},"TR KIRIKKA01","Kırıkkale Üniversitesi"]
[{"$nulls":9},"TR KIRKLAR01","Kırklareli Üniversitesi"]
[{"$nulls":9},"TR KIRSEHI01","Kırşehir Ahi Evran Üniversitesi"]
[{"$nulls":9},"TR KOCAELI01","Gebze Teknik Üniversitesi"]
[{"$nulls":9},"TR KOCAELI02","Kocaeli Üniversitesi"]
[{"$nulls":9},"TR KONYA01","Selçuk Üniversitesi"]
[{"$nulls":9},"TR KUTAHYA01","Dumlupınar Üniversitesi"]
[{"$nulls":9},"TR KUTAHYA02","Kütahya Health Science University"]
[{"$nulls":9},"TR MANISA01","Celal Bayar Üniversitesi"]
[{"$nulls":9},"TR MERSIN01","Mersin University"]
[{"$nulls":9},"TR MERSIN02","Çağ Üniversitesi"]
[{"$nulls":9},"TR NIGDE01","Niğde Ömer Halisdemir Üniversitesi"]
[{"$nulls":9},"TR ORDU01","Ordu Üniversitesi"]
[{"$nulls":9},"TR RIZE01","Recep Tayyip Erdogan Üniversitesi"]
[{"$nulls":9},"TR SAKARYA01","Sakarya Üniversitesi"]
[{"$nulls":9},"TR SAMSUN01","Ondokuz Mayıs Üniversitesi, Samsun"]
[{"$nulls":9},"TR SANLIUR01","Harran Üniversitesi"]
[{"$nulls":9},"TR SIVAS01","Cumhuriyet Üniversitesi"]
[{"$nulls":9},"TR TEKIRDA01","Namık Kemal Üniversitesi"]
[{"$nulls":9},"TR TOKAT01","Gaziosmanpaşa Üniversitesi"]
[{"$nulls":9},"TR TRABZON01","Karadeniz Teknik Üniversitesi"]
[{"$nulls":9},"TR USAK01","Uşak Üniversitesi"]
[{"$nulls":9},"TR YALOVA01","Yalova Üniversitesi"]
[{"$nulls":9},"UK CHELMSF01","Anglia Ruskin University"]
[{"$nulls":9},"UK EDINBUR01","University of Edinburgh"]
[{"$nulls":9},"UK EXETER01","University of Exeter"]
[{"$nulls":9},"UK LONDON093","Roehampton University"]
[{"$nulls":9},"UK PLYMOUT01","Plymouth University"]
[{"$nulls":9},"CA MANITOB01","University of Manitoba"]
[{"$nulls":9},"HSE_PETERSB","National Research University Higher School of Economics, St. Petersburg"]
[{"$nulls":9},"CN LIXIN01","Shanghai Lixin University of Accounting and Finance (SLU)"]
[{"$nulls":9},"TN MANOUBA01","University of Manouba"]